fUST/lending_fUST_20260112
["ID","MTS","AMOUNT","RATE_DAILY","PERIOD"]
[401383779,1768169452779,-800.0,0.00024823,2]
[401383780,1768169452789,-4898.92616056,0.00024832,2]
[401383781,1768169452798,-800.0,0.0002484,2]
[401383782,1768169452807,-151.0,0.00024854,7]
[401383783,1768169452816,-163.254575,0.00024854,7]
[401383784,1768169452825,-151.0,0.00024854,7]
[401383785,1768169452834,-800.0,0.0002486,2]
[401383786,1768169452843,-800.0,0.00024861,2]
[401383787,1768169452852,-800.0,0.00024881,2]
[401383788,1768169452861,-1923.0,0.00024888,2]
[401383789,1768169452869,-800.0,0.00024899,2]
[401383790,1768169452879,-321.052637,0.000249,7]
[401383791,1768169452888,-321.052637,0.000249,7]
[401383792,1768169452897,-321.052637,0.000249,7]
[401383793,1768169452905,-151.0,0.000249,7]
[401383794,1768169452914,-151.0,0.000249,7]
[401383795,1768169452923,-151.0,0.000249,7]
[401383796,1768169452932,-3359.23,0.000249,14]
[401383797,1768169452941,-151.0,0.000249,7]
[401383798,1768169452951,-259.707138,0.000249,7]
[401383799,1768169452960,-151.0,0.000249,7]
[401383800,1768169452970,-700.258706,0.000249,7]
[401383801,1768169452979,-700.258706,0.000249,7]
[401383802,1768169452988,-700.258706,0.000249,7]
[401383803,1768169452997,-700.258704,0.000249,7]
[401383804,1768169453006,-306.783496,0.000249,7]
[401383805,1768169453016,-306.783496,0.000249,7]
[401383806,1768169453025,-306.783496,0.000249,7]
[401383807,1768169453034,-306.783493,0.000249,7]
[401383808,1768169453045,-1083.72673178,0.000249,2]
[401383809,1768169453054,-131173.62836423,0.000249,2]
[401383810,1768169453173,-3197.18973189,0.000249,2]
[401383811,1768169453184,-36466.75229328,0.000249,2]
[401383812,1768169453195,-74107.26707325,0.000249,2]
[401383813,1768169453207,-138728.5660041,0.000249,2]
[401383814,1768169453218,-3585.94256917,0.000249,2]
[401383815,1768169453230,-325.08381186,0.000249,2]
[401383816,1768169453241,-296.48337705,0.000249,2]
[401383817,1768169453341,-151.0,0.00021918,2]
[401383818,1768169453351,-111.0624995,0.00021918,2]
[401383819,1768169453362,-39.9375005,0.00021918,2]
[401383820,1768169453372,-151.0,0.00021918,2]
[401383821,1768169453381,-239.604005,0.0002302,2]
[401383822,1768169453391,-402.49918699,0.000249,2]
[401383823,1768169453402,-1095.21043255,0.000249,2]
[401383824,1768169453426,-214253.37070263,0.000249,2]
[401383825,1768169453518,-500.0,0.00024932,2]
[401383826,1768169453528,-5000.0,0.00024953,2]
[401383827,1768169453538,-1923.0,0.00024965,2]
[401383828,1768169453548,-1923.0,0.00024977,2]
[401383829,1768169453558,-1085.75656527,0.00025,2]
[401383830,1768169453568,-2675.46555144,0.00025,2]
[401383831,1768169453578,-4869.5628762,0.00025,2]
[401383832,1768169453589,-343.96,0.00025,2]
[401383833,1768169453601,-202.17,0.00025,2]
[401383834,1768169453610,-150.67,0.00025,2]
[401383835,1768169453620,-90000.0,0.00025,2]
[401383836,1768169453630,-321.052637,0.00025,7]
[401383837,1768169453640,-321.052637,0.00025,7]
[401383838,1768169453650,-151.0,0.00025,7]
[401383839,1768169453660,-151.0,0.00025,7]
[401383840,1768169453677,-151.0,0.00025,7]
[401383841,1768169453686,-1923.0,0.00025029,2]
[401383842,1768169453696,-611.55196731,0.00025062,15]
[401383843,1768169453706,-231.0,0.00025068,14]
[401383844,1768169453716,-500.0,0.00025069,2]
[401383845,1768169453726,-152.52,0.000251,2]
[401383846,1768169453736,-153.16,0.000251,2]
[401383847,1768169453745,-173.58038977,0.00025129,7]
[401383848,1768169453755,-323.97370931,0.00025167,7]
[401383849,1768169453764,-1551.41254825,0.00025167,7]
[401383850,1768169453775,-377.2725358,0.00025177,2]
[401383851,1768169453784,-377.2725358,0.00025177,2]
[401383852,1768169453794,-377.2725358,0.00025177,2]
[401383853,1768169453803,-376.8938006,0.00025177,2]
[401383854,1768169453812,-376.1363302,0.00025177,2]
[401383855,1768169453822,-377.2725358,0.00025177,2]
[401383856,1768169453832,-377.2725358,0.00025177,2]
[401383857,1768169453842,-377.2725358,0.00025177,2]
[401383858,1768169453852,-1811.0,0.00025191,2]
[401383859,1768169453861,-250.0,0.00025205,2]
[401383860,1768169453871,-300.0,0.00025205,2]
[401383861,1768169453880,-200.0,0.00025206,2]
[401383862,1768169453890,-200.0,0.00025206,2]
[401383863,1768169453899,-500.0,0.00025206,2]
[401383864,1768169453908,-34692.55458483,0.00025212,2]
[401383865,1768169453917,-1923.0,0.00025224,2]
[401383866,1768169453928,-1295.89483725,0.00025228,7]
[401383867,1768169453937,-833.55636681,0.00025281,2]
[401383868,1768169453948,-2915.76338382,0.00025288,7]
[401383869,1768169453957,-168.0,0.0002534,2]
[401383870,1768169453967,-500.0,0.00025343,2]
[401383871,1768169453976,-1923.0,0.00025348,2]
[401383872,1768169453986,-5183.57934901,0.00025349,7]
[401383873,1768169453996,-152.03,0.000254,2]
[401383874,1768169454005,-153.66,0.000254,2]
[401383875,1768169454015,-8091.24339009,0.0002541,7]
[401383876,1768169454025,-6199.4445428,0.0002541,7]
[401383877,1768169454035,-1000.0,0.00025464,10]
[401383878,1768169454045,-1000.0,0.00025464,10]
[401383879,1768169454055,-1000.0,0.00025464,10]
[401383880,1768169454065,-715.0,0.00025464,10]
[401383881,1768169454075,-500.0,0.0002548,2]
[401383882,1768169454084,-343.96,0.000255,2]
[401383883,1768169454094,-202.17,0.000255,2]
[401383884,1768169454104,-4011.0,0.00025595,2]
[401383885,1768169454114,-150.67,0.000256,2]
[401383886,1768169454124,-154.1,0.000256,2]
[401383887,1768169454136,-500.0,0.00025617,2]
[401383888,1768169454146,-11773.83379707,0.00025647,2]
[401383889,1768169454156,-154.49,0.000257,2]
[401383890,1768169454165,-1811.0,0.00025746,2]
[401383891,1768169454175,-350.0,0.00025753,2]
[401383892,1768169454184,-500.0,0.00025754,2]
[401383893,1768169454194,-29138.3852901,0.0002576,2]
[401383894,1768169454275,-1378.62418136,0.0002576,2]
[401383895,1768169454290,-419.18467264,0.0002576,2]
[401383896,1768169454301,-498.90421279,0.0002576,2]
[401383897,1768169454316,-4541.08074758,0.0002576,2]
[401383898,1768169454326,-930.96148859,0.000258,2]
[401383899,1768169454337,-569.37999998,0.000258,2]
[401383900,1768169454348,-16508.27614654,0.000258,2]
[401383901,1768169454359,-1610.19785751,0.000258,2]
[401383902,1768169454375,-13082.88450738,0.000258,2]
[401383903,1768169454384,-1626.6689793,0.00025819,7]
[401383904,1768169536581,327.10877,0.00030137,120]
[401384221,1768170604526,154.73,5e-05,2]
[401384251,1768170631979,-300.0,0.00013272,2]
[401384253,1768170631988,-608.0,0.00013272,2]
[401384255,1768170631998,-1200.0,0.00013272,2]
[401384257,1768170632008,-235.85545723,0.00013272,2]
[401384259,1768170632016,-4302.01743495,0.00013273,2]
[401384261,1768170632025,-155.72124395,0.00013273,2]
[401384263,1768170632035,-500.0,0.00013273,2]
[401384265,1768170632043,-503.26850674,0.00013273,2]
[401384267,1768170632052,-500.0,0.00013273,2]
[401384269,1768170632061,-261.50059176,0.00013273,2]
[401384271,1768170632070,-500.0,0.00013273,2]
[401384273,1768170632079,-908.73486003,0.00013699,2]
[401384460,1768170638111,-91.26513997,0.00013699,2]
[401384461,1768170638121,-482.22142169,0.00013699,2]
[401384462,1768170638225,-17.77857831,0.00013699,2]
[401384463,1768170638234,-500.0,0.00013699,2]
[401384464,1768170638245,-500.0,0.00013699,2]
[401384465,1768170638256,-581.34216933,0.00013699,2]
[401384466,1768170638266,-500.0,0.00013699,2]
[401384467,1768170638276,-500.0,0.00013699,2]
[401384468,1768170638285,-500.0,0.00013699,2]
[401384469,1768170638295,-500.0,0.00013699,2]
[401384470,1768170638305,-500.0,0.00013699,2]
[401384471,1768170638318,-500.0,0.00013699,2]
[401384472,1768170638327,-500.0,0.00013699,2]
[401384473,1768170638335,-500.0,0.00013699,2]
[401384474,1768170638344,-500.0,0.00013699,2]
[401384475,1768170638354,-500.0,0.00013699,2]
[401384476,1768170638364,-500.0,0.00013699,2]
[401384477,1768170638373,-500.0,0.00013699,2]
[401384478,1768170638382,-620.64308429,0.00013699,2]
[401384479,1768170638392,-500.0,0.00013699,2]
[401384480,1768170638402,-500.0,0.00013699,2]
[401384481,1768170638411,-500.0,0.00013699,2]
[401384482,1768170638421,-500.0,0.00013699,2]
[401384483,1768170638431,-500.0,0.00013699,2]
[401384484,1768170638441,-500.0,0.00013699,2]
[401384485,1768170638450,-227.43805299,0.00013699,2]
[401384486,1768170638465,-483.90483421,0.00013699,2]
[401384487,1768170638475,-500.0,0.00013699,2]
[401384488,1768170638484,-164.08625609,0.00013699,2]
[401384489,1768170638493,-500.0,0.00013699,2]
[401384490,1768170638503,-500.0,0.00013699,2]
[401384491,1768170638512,-500.0,0.00013699,2]
[401384492,1768170638521,-500.0,0.00013699,2]
[401384493,1768170638531,-570.28131147,0.00013821,2]
[401384494,1768170638541,-1000.0,0.00013821,2]
[401384495,1768170638550,-1000.0,0.00013821,2]
[401384496,1768170638560,-600.0,0.00013972,2]
[401384497,1768170638570,-500.0,0.00014145,2]
[401384498,1768170638579,-500.0,0.00014145,2]
[401384499,1768170638589,-171.54252698,0.00014145,2]
[401384500,1768170638600,-500.0,0.00014145,2]
[401384501,1768170638609,-500.0,0.00014145,2]
[401384502,1768170638619,-500.0,0.00014145,2]
[401384503,1768170638628,-500.0,0.00014145,2]
[401384504,1768170638638,-500.0,0.00014145,2]
[401384505,1768170638647,-183.34964677,0.00014145,2]
[401384506,1768170638656,-175.2,0.00014145,2]
[401384507,1768170638666,-500.0,0.00014145,2]
[401384508,1768170638675,-500.0,0.00014145,2]
[401384509,1768170638684,-186.79008236,0.00014145,2]
[401384510,1768170638693,-500.0,0.00014145,2]
[401384511,1768170638703,-500.0,0.00014145,2]
[401384512,1768170638712,-500.0,0.00014145,2]
[401384513,1768170638721,-494.14647782,0.00014145,2]
[401384514,1768170638730,-500.0,0.00014145,2]
[401384515,1768170638739,-500.0,0.00014145,2]
[401384516,1768170638749,-500.0,0.00014145,2]
[401384517,1768170638759,-500.0,0.00014145,2]
[401384518,1768170638768,-500.0,0.00014145,2]
[401384519,1768170638777,-446.2,0.00014145,2]
[401384520,1768170638787,-500.0,0.00014145,2]
[401384521,1768170638796,-500.0,0.00014145,2]
[401384522,1768170638935,-500.0,0.00014145,2]
[401384523,1768170638945,-890.08546209,0.00014146,2]
[401384524,1768170638955,-500.0,0.00014146,2]
[401384525,1768170638966,-890.08546209,0.00014146,2]
[401384526,1768170638976,-167.50188761,0.00014146,2]
[401384527,1768170638986,-890.08546209,0.00014146,2]
[401384528,1768170638997,-890.08546209,0.00014146,2]
[401384529,1768170639006,-890.08546209,0.00014146,2]
[401384530,1768170639015,-890.08546209,0.00014146,2]
[401384531,1768170639024,-890.08546209,0.00014146,2]
[401384532,1768170639034,-890.08546209,0.00014146,2]
[401384533,1768170639043,-890.08546209,0.00014146,2]
[401384534,1768170639053,-890.08546209,0.00014146,2]
[401384535,1768170639062,-890.08546209,0.00014146,2]
[401384536,1768170639072,-890.08546209,0.00014146,2]
[401384537,1768170639082,-890.08546209,0.00014146,2]
[401384538,1768170639092,-890.08546209,0.00014146,2]
[401384539,1768170639102,-890.08546209,0.00014146,2]
[401384540,1768170639111,-890.08546209,0.00014146,2]
[401384541,1768170639121,-890.08546209,0.00014146,2]
[401384542,1768170639130,-890.08546209,0.00014146,2]
[401384543,1768170639139,-890.08546209,0.00014146,2]
[401384544,1768170639150,-890.08546209,0.00014146,2]
[401384545,1768170639159,-890.08546209,0.00014146,2]
[401384546,1768170639169,-890.08546209,0.00014146,2]
[401384547,1768170639178,-890.08546209,0.00014146,2]
[401384548,1768170639187,-890.08546209,0.00014146,2]
[401384549,1768170639196,-890.08546209,0.00014146,2]
[401384550,1768170639206,-890.08546209,0.00014146,2]
[401384551,1768170639216,-890.08546209,0.00014146,2]
[401384552,1768170639226,-934.5897352,0.00014146,2]
[401384553,1768170639238,-934.5897352,0.00014146,2]
[401384554,1768170639248,-934.5897352,0.00014146,2]
[401384555,1768170639257,-934.5897352,0.00014146,2]
[401384556,1768170639267,-934.5897352,0.00014146,2]
[401384557,1768170639276,-934.5897352,0.00014146,2]
[401384558,1768170639286,-934.5897352,0.00014146,2]
[401384559,1768170639296,-173847.33365065,0.00014147,2]
[401384560,1768170639305,-500.0,0.00014247,2]
[401384561,1768170639315,-500.0,0.00014247,2]
[401384562,1768170639325,-250.0,0.00014247,2]
[401384563,1768170639334,-922.94168027,0.00014247,2]
[401384564,1768170639344,-1000.0,0.00014247,2]
[401384565,1768170639353,-1000.0,0.00014247,2]
[401384566,1768170639362,-500.0,0.00014247,2]
[401384567,1768170639372,-1000.0,0.00014247,2]
[401384568,1768170639381,-500.0,0.00014247,2]
[401384569,1768170639390,-319.8575815,0.00014247,2]
[401384570,1768170639399,-500.0,0.00014247,2]
[401384571,1768170639408,-500.0,0.00014247,2]
[401384572,1768170639418,-1000.0,0.00014247,2]
[401384573,1768170639427,-500.0,0.00014247,2]
[401384574,1768170639437,-500.0,0.00014247,2]
[401384575,1768170639448,-1000.0,0.00014247,2]
[401384576,1768170639459,-509.97698878,0.00014247,2]
[401384577,1768170639469,-500.0,0.00014247,2]
[401384578,1768170639480,-500.0,0.00014247,2]
[401384579,1768170639490,-500.0,0.00014247,2]
[401384580,1768170639501,-500.0,0.00014247,2]
[401384581,1768170639511,-500.0,0.00014247,2]
[401384582,1768170639521,-500.0,0.00014247,2]
[401384583,1768170639531,-1178.38612751,0.00014368,2]
[401384584,1768170639540,-1500.0,0.00014368,2]
[401384585,1768170639550,-5000.0,0.0001451,2]
[401384586,1768170639560,-300.0,0.0001453,2]
[401384587,1768170639569,-300.0,0.0001453,2]
[401384588,1768170639578,-300.0,0.0001453,2]
[401384589,1768170639588,-300.0,0.0001453,2]
[401384590,1768170639597,-300.0,0.0001453,2]
[401384591,1768170639607,-300.0,0.0001453,2]
[401384593,1768170639616,-300.0,0.0001453,2]
[401384594,1768170639625,-300.0,0.0001453,2]
[401384595,1768170639635,-300.0,0.0001453,2]
[401384596,1768170639644,-300.0,0.0001453,2]
[401384597,1768170639654,-300.0,0.0001453,2]
[401384598,1768170639663,-300.0,0.0001453,2]
[401384599,1768170639672,-300.0,0.0001453,2]
[401384600,1768170639682,-300.0,0.0001453,2]
[401384601,1768170639691,-300.0,0.0001453,2]
[401384602,1768170639701,-420.0,0.00014551,2]
[401384603,1768170639710,-342.93732994,0.00014795,2]
[401384604,1768170639719,-500.0,0.00014795,2]
[401384605,1768170639729,-500.0,0.00014795,2]
[401384606,1768170639745,-1500.0,0.00014795,2]
[401384607,1768170639760,-500.0,0.00014795,2]
[401384608,1768170639770,-1500.0,0.00014795,2]
[401384609,1768170639780,-100000.0,0.00014882,2]
[401384610,1768170639792,-594.79530897,0.000149,2]
[401384611,1768170639802,-454.23047744,0.000149,2]
[401384612,1768170639812,-454.23047744,0.000149,2]
[401384613,1768170639822,-454.23047744,0.000149,2]
[401384614,1768170639832,-2000.0,0.00014916,2]
[401384615,1768170639842,-1000.0,0.00015,2]
[401384616,1768170639852,-1018.62930606,0.00015,2]
[401384617,1768170639862,-33977.91469931,0.00015,2]
[401384618,1768170639872,-150.95375382,0.00015,2]
[401384619,1768170639882,-278.30943953,0.00015272,2]
[401384620,1768170639892,-746.08427355,0.00015342,2]
[401384621,1768170639902,-720.0,0.00015369,2]
[401384622,1768170639911,-2500.0,0.00015464,2]
[401384623,1768170639921,-587.0,0.00015953,2]
[401384624,1768170639935,-215.80455964,0.00016,2]
[401384625,1768170639945,-3000.0,0.00016012,2]
[401384626,1768170639956,-500.0,0.00016438,2]
[401384627,1768170639965,-500.0,0.00016438,2]
[401384628,1768170639976,-500.0,0.00016438,2]
[401384629,1768170639986,-546.24608449,0.00016438,2]
[401384630,1768170639995,-3500.0,0.0001656,2]
[401384631,1768170640007,-864.0,0.00016906,2]
[401384632,1768170640017,-88061.69714536,0.00017,2]
[401384633,1768170640027,-4000.0,0.00017108,2]
[401384635,1768170640037,-320.76342184,0.00017272,2]
[401384636,1768170640046,-308.0,0.00017329,2]
[401384637,1768170640056,-5000.0,0.00017412,2]
[401384638,1768170640065,-390.0,0.00017479,2]
[401384639,1768170640074,-601.0,0.0001749,2]
[401384640,1768170640083,-2136.47349432,0.000176,2]
[401384641,1768170640093,-154.73,0.000176,2]
[401384643,1768170640102,-473.0,0.00017646,2]
[401384645,1768170640112,-4500.0,0.00017656,2]
[401384647,1768170640121,-161769.51166541,0.00018,2]
[401384649,1768170640131,-979.78523212,0.00018104,2]
[401384651,1768170640140,-5000.0,0.00018204,2]
[401384653,1768170640149,-1000.0,0.00018596,2]
[401384655,1768170640159,-5533.32597111,0.00018752,2]
[401384657,1768170640169,-5000.0,0.00018863,2]
[401384659,1768170640179,-502.69926409,0.000189,2]
[401384661,1768170640188,-2603.49,0.00019,2]
[401384663,1768170640197,-17960.14853983,0.00019,2]
[401384665,1768170640207,-363.21740414,0.00019272,2]
[401384667,1768170640216,-167.65,0.000193,2]
[401384669,1768170640225,-2687.39,0.000193,2]
[401384671,1768170640235,-162.99,0.000193,2]
[401384673,1768170640244,-164.08,0.000193,2]
[401384675,1768170640254,-19621.03,0.000193,2]
[401384677,1768170640264,-269.81687219,0.0002,30]
[401384679,1768170640273,-151.55000802,0.0002,2]
[401384681,1768170640283,-366.68910096,0.0002,30]
[401384683,1768170640292,-652.55120361,0.0002,2]
[401384685,1768170640302,-14696.06851441,0.0002,2]
[401384687,1768170640311,-371.48046337,0.0002,2]
[401384689,1768170640320,-717.29999854,0.0002,2]
[401384691,1768170640330,-18532.91771161,0.0002,2]
[401384693,1768170640345,-9140.68039982,0.0002,2]
[401384696,1768170640357,-961.71379467,0.0002,2]
[401384698,1768170640368,-1703.45085993,0.0002,2]
[401384700,1768170640379,-562.31420507,0.0002,2]
[401384702,1768170640390,-15690.04593713,0.0002,2]
[401384704,1768170640401,-3006.69431809,0.0002,2]
[401384706,1768170640412,-28616.6850529,0.0002,2]
[401384708,1768170640422,-23000.0,0.0002,2]
[401384710,1768170640431,-202.6566192,0.0002,2]
[401384712,1768170640441,-19687.49416436,0.0002,30]
[401384714,1768170640451,-504.09317231,0.0002,2]
[401384716,1768170640460,-159.95633515,0.0002,2]
[401384718,1768170640469,-160.0,0.00020127,2]
[401384720,1768170640479,-1041.66666667,0.00020127,2]
[401384722,1768170640488,-485.24067775,0.0002013,2]
[401384724,1768170640498,-1000.0,0.00020456,2]
[401384726,1768170640508,-244.0,0.00020456,2]
[401384728,1768170640517,-979.78523211,0.00020471,2]
[401384730,1768170640526,-1388.8426127,0.0002061,2]
[401384732,1768170640536,-578.4,0.00020815,2]
[401384734,1768170640545,-256.38902735,0.000209,2]
[401384736,1768170640555,-277.25260667,0.00021,2]
[401384738,1768170640564,-8979.36947741,0.00021,2]
[401384743,1768170640600,-890.80323467,0.00021,2]
[401384745,1768170640611,-528.89051107,0.00021,2]
[401384747,1768170640622,-733.73686278,0.00021,2]
[401384749,1768170640633,-38867.19991407,0.00021,2]
[401384751,1768170640642,-405.67138644,0.00021272,2]
[401384753,1768170640651,-1039.48725245,0.000215,2]
[401384755,1768170640661,-12857.92042375,0.000215,2]
[401384757,1768170640670,-578.4,0.00022073,2]
[401384759,1768170640680,-157.11492552,0.00022222,5]
[401384761,1768170640689,-300.0,0.00022466,2]
[401384763,1768170640698,-47938.37331015,0.00022478,2]
[401384765,1768170640708,-1033.47582759,0.000225,2]
[401384767,1768170640717,-1000.0,0.00022501,10]
[401384769,1768170640726,-492.0,0.00022501,10]
[401384771,1768170640736,-979.78523211,0.00022838,2]
[401384773,1768170640745,-615.733183,0.00022853,2]
[401384775,1768170640755,-155.57399191,0.00022909,5]
[401384777,1768170640764,-450.0,0.00023014,2]
[401384779,1768170640773,-19621.03,0.000231,2]
[401384780,1768170640782,-161.662681,0.00023265,2]
[401384781,1768170640791,-203.770784,0.00023265,2]
[401384782,1768170640799,-203.770784,0.00023265,2]
[401384783,1768170640808,-203.770784,0.00023265,2]
[401384784,1768170640817,-203.770784,0.00023265,2]
[401384785,1768170640826,-448.12536874,0.00023272,2]
[401384786,1768170640834,-2687.39,0.000233,14]
[401384787,1768170640843,-578.4,0.0002333,2]
[401384788,1768170640852,-600.0,0.00023562,2]
[401384789,1768170640861,-151.0,0.00023643,2]
[401384790,1768170640870,-151.0,0.00023643,2]
[401384791,1768170640879,-151.0,0.00023643,2]
[401384792,1768170640888,-151.0,0.00023643,2]
[401384793,1768170640896,-151.0,0.00023643,2]
[401384794,1768170640905,-151.0,0.00023643,2]
[401384795,1768170640914,-151.0,0.00023643,2]
[401384796,1768170640923,-151.0,0.00023643,2]
[401384797,1768170640936,-151.0,0.00023643,2]
[401384798,1768170640944,-151.0,0.00023643,2]
[401384799,1768170640953,-500.0,0.00023643,2]
[401384800,1768170640963,-151.0,0.00023643,2]
[401384801,1768170640973,-496.47127164,0.00023643,2]
[401384802,1768170640982,-250.0,0.00023643,2]
[401384803,1768170640990,-151.0,0.00023643,2]
[401384804,1768170640999,-500.0,0.00023643,2]
[401384805,1768170641010,-151.0,0.00023643,2]
[401384806,1768170641019,-250.0,0.00023643,2]
[401384807,1768170641028,-151.0,0.00023643,2]
[401384808,1768170641037,-151.0,0.00023643,2]
[401384809,1768170641046,-151.0,0.00023643,2]
[401384810,1768170641055,-500.0,0.00023643,2]
[401384811,1768170641064,-250.0,0.00023643,2]
[401384812,1768170641073,-151.0,0.00023643,2]
[401384813,1768170641082,-151.0,0.00023643,2]
[401384814,1768170641091,-151.0,0.00023643,2]
[401384815,1768170641100,-500.0,0.00023643,2]
[401384816,1768170641109,-250.0,0.00023643,2]
[401384817,1768170641118,-151.0,0.00023643,2]
[401384818,1768170641127,-151.0,0.00023643,2]
[401384819,1768170641136,-151.0,0.00023643,2]
[401384820,1768170641145,-500.0,0.00023643,2]
[401384821,1768170641154,-250.0,0.00023643,2]
[401384822,1768170641163,-151.0,0.00023643,2]
[401384823,1768170641171,-250.0,0.00023643,2]
[401384824,1768170641180,-151.0,0.00023643,2]
[401384825,1768170641189,-500.0,0.00023643,2]
[401384827,1768170641197,-250.0,0.00023643,2]
[401384829,1768170641206,-151.0,0.00023643,2]
[401384831,1768170641215,-151.0,0.00023643,2]
[401384833,1768170641225,-151.0,0.00023643,2]
[401384835,1768170641233,-250.0,0.00023643,2]
[401384837,1768170641242,-151.0,0.00023643,2]
[401384839,1768170641251,-252.94566259,0.00023643,2]
[401384841,1768170641261,-500.0,0.00023643,2]
[401384843,1768170641270,-250.0,0.00023643,2]
[401384845,1768170641279,-151.0,0.00023643,2]
[401384847,1768170641288,-151.0,0.00023643,2]
[401384849,1768170641298,-151.0,0.00023643,2]
[401384851,1768170641307,-250.0,0.00023643,2]
[401384853,1768170641316,-2030.29667201,0.00023643,2]
[401384855,1768170641325,-151.0,0.00023643,2]
[401384857,1768170641334,-500.0,0.00023643,2]
[401384859,1768170641343,-250.0,0.00023643,2]
[401384861,1768170641352,-151.0,0.00023643,2]
[401384863,1768170641361,-151.0,0.00023643,2]
[401384865,1768170641370,-151.0,0.00023643,2]
[401384867,1768170641379,-250.0,0.00023643,2]
[401384869,1768170641388,-500.0,0.00023643,2]
[401384871,1768170641397,-151.0,0.00023643,2]
[401384873,1768170641407,-250.0,0.00023643,2]
[401384875,1768170641416,-151.0,0.00023643,2]
[401384877,1768170641425,-151.0,0.00023643,2]
[401384879,1768170641434,-250.0,0.00023643,2]
[401384881,1768170641443,-151.0,0.00023643,2]
[401384883,1768170641452,-500.0,0.00023643,2]
[401384885,1768170641461,-151.0,0.00023643,2]
[401384887,1768170641471,-250.0,0.00023643,2]
[401384889,1768170641480,-151.0,0.00023643,2]
[401384891,1768170641489,-151.0,0.00023643,2]
[401384893,1768170641498,-265.04542702,0.00023643,2]
[401384906,1768170641613,-151.0,0.00023643,2]
[401384908,1768170641622,-500.0,0.00023643,2]
[401384910,1768170641631,-151.0,0.00023643,2]
[401384912,1768170641642,-250.0,0.00023643,2]
[401384914,1768170641653,-151.0,0.00023643,2]
[401384916,1768170641661,-151.0,0.00023643,2]
[401384918,1768170641671,-500.0,0.00023643,2]
[401384920,1768170641680,-151.0,0.00023643,2]
[401384922,1768170641690,-250.0,0.00023643,2]
[401384925,1768170641699,-151.0,0.00023643,2]
[401384927,1768170641709,-151.0,0.00023643,2]
[401384928,1768170641718,-151.0,0.00023643,2]
[401384931,1768170641728,-500.0,0.00023643,2]
[401384933,1768170641737,-151.0,0.00023643,2]
[401384935,1768170641748,-250.0,0.00023643,2]
[401384937,1768170641757,-151.0,0.00023643,2]
[401384939,1768170641767,-151.0,0.00023643,2]
[401384941,1768170641776,-151.0,0.00023643,2]
[401384943,1768170641785,-500.0,0.00023643,2]
[401384945,1768170641794,-151.0,0.00023643,2]
[401384947,1768170641803,-250.0,0.00023643,2]
[401384949,1768170641812,-241.8234162,0.00023643,2]
[401384951,1768170641821,-151.0,0.00023643,2]
[401384953,1768170641831,-151.0,0.00023643,2]
[401384955,1768170641841,-500.0,0.00023643,2]
[401384957,1768170641850,-151.0,0.00023643,2]
[401384959,1768170641859,-250.0,0.00023643,2]
[401384961,1768170641867,-151.0,0.00023643,2]
[401384963,1768170641876,-152.53645226,0.00023643,2]
[401384964,1768170641885,-30000.0,0.00023643,2]
[401384966,1768170641895,-250.0,0.00023643,2]
[401384968,1768170641903,-151.0,0.00023643,2]
[401384970,1768170641912,-250.0,0.00023643,2]
[401384972,1768170641921,-250.0,0.00023643,2]